Cogmind - Beta 10.2 @@@ ROGUE MODE // 2022.03.13 @ 15:45:29 Player: Yanche Result: Destroyed by D-53 Grenadier with Mini Grenade Launcher Performance ------------- Evolutions (0) 0 Regions Visited (4) 800 Robots Destroyed (17) 85 Value Destroyed (343) 343 Prototype IDs (0) 0 Alien Tech Used (0) 0 Bonus (300) 300 TOTAL SCORE: 1528 Bonus ------- Aligned with FarCom 300 Cogmind --------- Core Integrity 0/250 Matter 291/300 Energy 91/100 System Corruption 0% Temperature Cool (0) Movement Core (550) Ox10 Location -9/Mines Parts ------- > --- POWER (1) -------- (None) > --- PROPULSION (2) --- (None) > --- UTILITY (2) ------ High-capacity Storage Unit Terrain Scanner > --- WEAPON (2) ------- (None) > --- INVENTORY (12) --- Wheel High-capacity Battery (400) Structural Scanner Sensor Array Signal Interpreter ECM Suite Propulsion Shielding Trap Reconfigurator Peak State ------------ > --- POWER ------------ Light Ion Engine > --- PROPULSION ------- Compact Wheel Compact Wheel > --- UTILITY ---------- High-capacity Storage Unit High-capacity Battery > --- WEAPON ----------- Particle Gun Assault Rifle > --- INVENTORY -------- Light Ion Engine Compact Wheel Improved Heat Sink Large Storage Unit Large Storage Unit Signal Interpreter ECM Suite Small Laser [Rating: 9] Favorites ----------- Power Light Ion Engine Engine Light Ion Engine Propulsion Compact Wheel Wheel Compact Wheel Utility High-capacity Storage Unit Device Terrain Scanner Storage High-capacity Storage Unit Weapon Assault Rifle Energy Gun EM Pulse Gun Ballistic Gun Assault Rifle Build | -11 -10 -10 -10 -9 ------- Run | Scr Mat Min Exi Min Slots Evolved . | . . . . . Power . | . . . . . Propulsion . | . . . . . Utility . | . . . . . Weapon . | . . . . . Parts Attached 21 | 6 7 4 . 4 Power 4 | 1 2 . . 1 Engine 4 | 1 2 . . 1 Core . | . . . . . Reactor . | . . . . . Propulsion 3 | 2 . 1 . . Treads . | . . . . . Leg . | . . . . . Wheel 3 | 2 . 1 . . Hover . | . . . . . Flight . | . . . . . Utility 5 | 1 3 1 . . Device 1 | . . 1 . . Storage 4 | 1 3 . . . Processor . | . . . . . Hackware . | . . . . . Protection . | . . . . . Artifact . | . . . . . Weapon 9 | 2 2 2 . 3 Energy Gun 5 | . 2 1 . 2 Energy Cannon . | . . . . . Ballistic Gun 4 | 2 . 1 . 1 Ballistic Cannon . | . . . . . Launcher . | . . . . . Special Weapon . | . . . . . Impact Weapon . | . . . . . Slashing Weapon . | . . . . . Piercing Weapon . | . . . . . Special Melee Weapon . | . . . . . Unidentified Prototypes . | . . . . . Parts Lost 14 | . 3 2 . 9 Power 3 | . 1 . . 2 Propulsion 3 | . . 1 . 2 Utility . | . . . . . Weapon 8 | . 2 1 . 5 Highest Loss Streak 9 | . 3 2 . 9 Average Slot Usage (%) 99 | . 98 99 100 89 Engine 13 | . 14 14 14 12 Wheel 27 | . 28 27 28 24 Device 8 | . . 11 14 14 Storage 18 | . 26 16 14 14 Energy Gun 10 | . 4 14 14 12 Ballistic Gun 16 | . 23 14 14 10 Naked Turns . | . . . . . Heaviest Build 44 | 13 44 44 39 39 Greatest Support 32 | 32 32 32 32 32 Greatest Overweight (x) 10 | 1 1 1 1 10 Average Overweight (x) . | . . 1 1 1 Largest Inventory Capacity 12 | 6 12 12 12 12 Average Capacity 11 | 5 10 12 12 12 Most Carried 12 | 2 11 12 12 12 Average Carried 9 | 1 6 11 12 11 Final Capacity 12 | 6 12 12 12 12 Final Carried 12 | 2 11 12 12 8 Class Distribution -------------------- 95% | Mutant 4% | Skirmisher Dominant Class ---------------- Mutant | -10/Materials Mutant | -10/Mines Mutant | -10/Exiles Skirmisher | -9/Mines Resources | -11 -10 -10 -10 -9 ----------- Run | Scr Mat Min Exi Min Matter Collected 522 | 163 305 54 . . Remotely . | . . . . . Salvage Created 454 | . 329 125 . . Parts 30 | . 16 14 . . Haulers Intercepted . | . . . . . Recyclers Shooed . | . . . . . Parts Field Recycled . | . . . . . Retrieved Matter . | . . . . . Parts Self-Destructed . | . . . . . Prevented . | . . . . . Kills | -11 -10 -10 -10 -9 ------- Run | Scr Mat Min Exi Min Combat Hostiles Destroyed 13 | . 7 6 . . Guns 12 | . 7 5 . . AOE 1 | . . 1 . . Classes Destroyed 4 | . 3 1 . . Worker 3 | . 1 2 . . Operator 1 | . 1 . . . Swarmer 6 | . . 6 . . Grunt 7 | . 7 . . . Best Kill Streak 3 | . 2 3 . . Combat Bots Only 3 | . 2 3 . . Max Kills in Single Turn 2 | . 1 2 . . Gunslinging . | . . . . . Exploded 1 | . . 1 . . Melee . | . . . . . Uniques/NPCs Destroyed . | . . . . . Combat | -11 -10 -10 -10 -9 -------- Run | Scr Mat Min Exi Min Damage Taken 1143 | . 495 161 . 487 Core 288 | . 160 10 . 118 Absorbed by Shields . | . . . . . Core Remaining (%) 100 | 100 . . . . Volleys Fired 51 | . 28 17 . 6 Largest 2 | . 2 2 . 2 Hottest 85 | . 85 85 . 65 Shots Fired 96 | . 56 33 . 7 Gun 96 | . 56 33 . 7 Cannon . | . . . . . Launcher . | . . . . . Special . | . . . . . Kinetic 72 | . 51 16 . 5 Thermal 11 | . 5 5 . 1 Explosive . | . . . . . Electromagnetic 13 | . . 12 . 1 Robot Hit Streak 12 | . 12 4 . 7 Robot Miss Streak 3 | . 1 3 . . Penetration Max . | . . . . . Secondary Targets 4 | . 2 2 . . Max Gunslinging Chain 1 | . 1 1 . . Shots Hit Robots 67 | . 44 16 . 7 Core Hits 29 | . 16 10 . 3 Critical Hits 1 | . 1 . . . Critical Kills . | . . . . . Critical Parts Destroyed 1 | . 1 . . . Melee Attacks . | . . . . . Impact . | . . . . . Slashing . | . . . . . Piercing . | . . . . . Sneak Attacks . | . . . . . Combat Hostiles . | . . . . . Follow-up Attacks . | . . . . . Damage Inflicted 916 | . 545 301 . 70 Guns 839 | . 545 224 . 70 Cannons . | . . . . . Explosions 77 | . . 77 . . Melee . | . . . . . Ramming . | . . . . . Kinetic 587 | . 490 56 . 41 Thermal 196 | . 55 124 . 17 Explosive . | . . . . . Electromagnetic 133 | . . 121 . 12 Impact . | . . . . . Slashing . | . . . . . Piercing . | . . . . . Highest Corruption . | . . . . . Average Corruption . | . . . . . Corruption Purged . | . . . . . Overload Shots . | . . . . . Overflow Damage . | . . . . . Projectiles . | . . . . . Explosions . | . . . . . Melee . | . . . . . Knockbacks . | . . . . . Impact . | . . . . . Kinetic . | . . . . . Secondary . | . . . . . Self-Inflicted Damage 35 | . . 35 . . Shots 1 | . . 1 . . Rammed . | . . . . . Targets Rammed . | . . . . . Kicked . | . . . . . Crushed . | . . . . . Highest Temperature 120 | . 54 120 . 24 Average Temperature 28 | . 18 37 . 14 Received Heat Transfer 279 | . 279 . . . Siege Activations . | . . . . . Robots Corrupted . | . . . . . Combat Hostiles . | . . . . . Parts Fried . | . . . . . Impact Corruptions . | . . . . . Robots Melted . | . . . . . Combat Hostiles . | . . . . . Parts Melted . | . . . . . Heat Transferred 296 | . 148 111 . 37 Parts Sabotaged . | . . . . . Parts Stolen . | . . . . . Parts Stripped . | . . . . . Power Chain Reactions 1 | . . 1 . . Missiles Intercepted . | . . . . . Alert | -11 -10 -10 -10 -9 ------- Run | Scr Mat Min Exi Min Peak Influence 205 | . 205 74 . . Initial 16 | . . 16 . . Average 48 | . 81 29 . . Maximum Alert Level 1 | . 1 . . . Low Security (%) 98 | 100 95 100 . 100 Level 1 1 | . 4 . . . Level 2 . | . . . . . Level 3 . | . . . . . Level 4 . | . . . . . Level 5 . | . . . . . High Security . | . . . . . Max Security . | . . . . . Squads Dispatched 2 | . 2 . . . Investigation . | . . . . . Extermination . | . . . . . Reinforcement 2 | . 2 . . . Assault . | . . . . . Garrison . | . . . . . Intercept . | . . . . . Construction Impeded . | . . . . . Haulers Reinforced . | . . . . . Stealth | -11 -10 -10 -10 -9 --------- Run | Scr Mat Min Exi Min Distress Signals 2 | . 2 . . . Communications Jammed . | . . . . . Distress Signals . | . . . . . Times Spotted 21 | . 13 6 . 2 Peak Tracking Total 3 | . 3 3 . 2 Tactical Retreats 1 | . 1 . . . Traps | -11 -10 -10 -10 -9 ------- Run | Scr Mat Min Exi Min Traps Triggered . | . . . . . Indirectly . | . . . . . Trap Hack Attempts . | . . . . . Triggered . | . . . . . Disarmed . | . . . . . Reprogrammed . | . . . . . Reused . | . . . . . Traps Extracted . | . . . . . Installed . | . . . . . Triggered 1 | . . 1 . . Machines | -11 -10 -10 -10 -9 ---------- Run | Scr Mat Min Exi Min Machines Disabled . | . . . . . Max in Single Turn . | . . . . . Machines Sabotaged . | . . . . . Garrisons Compromised . | . . . . . Overloaded Fab Kills . | . . . . . Fab Network Shutdowns . | . . . . . Hacking | -11 -10 -10 -10 -9 --------- Run | Scr Mat Min Exi Min Machines Accessed 2 | . 1 1 . . Terminals 2 | . 1 1 . . Fabricators . | . . . . . Repair Stations . | . . . . . Recycling Units . | . . . . . Scanalyzers . | . . . . . Garrison Access . | . . . . . Total Hacks 6 | . 4 2 . . Successful 5 | . 3 2 . . Failed 1 | . 1 . . . Catastrophic . | . . . . . Database Lockouts . | . . . . . Manual 2 | . . . 2 . Terminals 6 | . 4 2 . . Fabricators . | . . . . . Repair Stations . | . . . . . Recycling Units . | . . . . . Scanalyzers . | . . . . . Garrison Access . | . . . . . Terminal Hacks 5 | . 3 2 . . Record 1 | . . 1 . . Branch Access Points 1 | . 1 . . . Alert Level 1 | . 1 . . . Dispatch Records 2 | . 1 1 . . Fabricator Hacks . | . . . . . Repair Station Hacks . | . . . . . Recycling Unit Hacks . | . . . . . Scanalyzer . | . . . . . Garrison Access Hacks . | . . . . . Unauthorized Hacks . | . . . . . Terminals . | . . . . . Fabricators . | . . . . . Repair Stations . | . . . . . Recycling Units . | . . . . . Scanalyzers . | . . . . . Garrison Access . | . . . . . Data Cores Recovered . | . . . . . Used . | . . . . . Hacking Detections . | . . . . . Full Trace Events . | . . . . . Feedback Events . | . . . . . Feedback Blocked . | . . . . . Robot Schematics Acquired . | . . . . . Robots Built . | . . . . . Matter . | . . . . . Time . | . . . . . Total Robot Build Rating . | . . . . . Part Schematics Acquired . | . . . . . Parts Built . | . . . . . Matter . | . . . . . Time . | . . . . . Total Part Build Rating . | . . . . . Parts Repaired . | . . . . . Time . | . . . . . Parts Recycled . | . . . . . Recycled Matter . | . . . . . Retrieved Matter . | . . . . . Retrieved Components . | . . . . . Parts Scanalyzed . | . . . . . Part Schematics Acquired . | . . . . . Parts Damaged . | . . . . . Bothacking | -11 -10 -10 -10 -9 ------------ Run | Scr Mat Min Exi Min Used RIF Installer . | . . . . . Robots Hacked . | . . . . . Non-combat . | . . . . . Combat . | . . . . . Robot Hacks Applied . | . . . . . Relay Couplers Released . | . . . . . Robots Rewired . | . . . . . Allies Hacked . | . . . . . Hacks Repelled . | . . . . . Allies | -11 -10 -10 -10 -9 -------- Run | Scr Mat Min Exi Min Total Allies 1 | . . . . 1 Largest Group 1 | . . . . 1 Highest-Rated Group 31 | . . . . 31 Highest-Rated Ally 31 | . . . . 31 Total Orders . | . . . . . Ally Attacks 2 | . . . . 2 Total Damage 40 | . . . . 40 Kills . | . . . . . Allies Corrupted . | . . . . . Allies Melted . | . . . . . Intel | -11 -10 -10 -10 -9 ------- Run | Scr Mat Min Exi Min Robot Analysis Total . | . . . . . Derelict Logs Recovered . | . . . . . Drone Launches . | . . . . . Drone Recoveries . | . . . . . Exploration | -11 -10 -10 -10 -9 ------------- Run | Scr Mat Min Exi Min Turns Passed 1702 | 41 511 628 440 82 Spaces Moved 1360 | 32 350 520 399 59 Core 4 | 3 . . . 1 Treads . | . . . . . Legs . | . . . . . Wheels 1356 | 29 350 520 399 58 Hover . | . . . . . Flight . | . . . . . Fastest Speed 50 | 50 100 110 110 110 Average Speed 108 | 96 102 110 110 117 Slowest Speed 550 | 100 110 110 110 550 Overloaded Moves . | . . . . . Propulsion Burnouts . | . . . . . Robots Hopped . | . . . . . Cave-ins Triggered . | . . . . . Exploration Rate (%) 45 | 4 39 91 70 25 Regions Visited 4 Branch Regions 3 Pre-discovered Areas . | . . . . . Known Exits Taken 1 | . 1 . . . Unknown Exits Taken 3 | 1 . 1 1 . Scrap Searched 2 | . . 2 . . Spaces Dug . | . . . . . Terrain Destroyed 7 | . . 7 . . Melee . | . . . . . Projectile . | . . . . . AOE 7 | . . 7 . . Terrain Rammed . | . . . . . Walls Destroyed . | . . . . . Machines Disabled . | . . . . . Actions | -11 -10 -10 -10 -9 --------- Run | Scr Mat Min Exi Min Total 1500 | 39 446 546 400 69 Wait 44 | . 44 . . . Move 1356 | 31 349 519 398 59 Hop . | . . . . . Pick Up 21 | 2 14 4 1 . Fast Attach 8 | 6 2 . . . Attach 10 | . 3 3 . 4 Detach 1 | . . 1 . . Swap 3 | . 2 1 . . Drop 6 | . 4 1 1 . Fire 51 | . 28 17 . 6 Melee . | . . . . . Ram . | . . . . . Kick . | . . . . . Crush . | . . . . . Escape Stasis . | . . . . . Rewire . | . . . . . Trap . | . . . . . Miscellaneous . | . . . . . Route ------- -11/Scrapyard -10/Materials (discovered 2 exits: [*Mat] / *Min) -10/Mines (discovered 3 exits: [*Mat x2] / *Exi) -10/Exiles -9/Mines History --------- Turn | Location | Event 2 | -11/Scrapyard | Met Revision 17 20 | -11/Scrapyard | Discovered new exit (range 16) 42 | -11/Scrapyard | Entered Materials 279 | -10/Materials | Discovered new exit (range 15) 307 | -10/Materials | Build established: Mutant 330 | -10/Materials | Core integrity fell below 50% 451 | -10/Materials | Lost 3 parts (1p2w) 466 | -10/Materials | Discovered new exit (range 11) 502 | -10/Materials | Identified exit to Mines 553 | -10/Materials | Entered Mines 732 | -10/Mines | Deemed a non-threat by the Exiles lab entrance 732 | -10/Mines | Discovered new exit (range 5) 1009 | -10/Mines | Discovered new exit (range 12) 1112 | -10/Mines | Discovered new exit (range 5) 1181 | -10/Mines | Entered Exiles 1201 | -10/Exiles | Discovered new exit (range 15) 1234 | -10/Exiles | Met 8R-AWN 1251 | -10/Exiles | Met EX-HEX 1289 | -10/Exiles | Met EX-BIN 1306 | -10/Exiles | Aligned with FarCom system 1307 | -10/Exiles | Given EX-Vault access code 1332 | -10/Exiles | Opened EX-Vault 1339 | -10/Exiles | Found Prototype Device 1364 | -10/Exiles | Warned to stay clear of 0b10 Research branches 1400 | -10/Exiles | Met EX-DEC 1621 | -10/Exiles | Left Exiles lab with Trap Reconfigurator 1621 | -10/Exiles | Entered Mines 1622 | -9/Mines | Assembled infested the area 1655 | -9/Mines | Met a Derelict testing a Signal Generator 1694 | -9/Mines | Core integrity fell below 20% 1703 | -9/Mines | Destroyed by D-53 Grenadier with Mini Grenade Launcher Last Messages --------------- force. ALERT: Intercepting significant anomalous signal. Redirecting assault force. D-53 Grenadier destroyed. The unstable cave ceiling collapses. Lgt. Assault Rifle destroyed. Lgt. Ion Engine destroyed. EM Pulse Gun destroyed. The unstable cave ceiling collapses. Particle Gun destroyed. U-05 Engineer lays Concrete. Lgt. Ion Engine destroyed. Com. Wheel destroyed. U-05 Engineer lays Concrete. Com. Wheel destroyed. U-05 Engineer lays Concrete. Lgt. Assault Rifle destroyed. U-05 Engineer lays Concrete. Sml. Laser destroyed. U-05 Engineer lays Concrete. Map ----- +----------------------------------------------------+ | ???????????????????????????????????? | | ?????????????????????#?????????????? | | ?????????#?????????????????????????? | | ???????????????????????????????????? | | ?????????????????????????????#####?? | | ???????#????????????????????## #?? | | ??????????????????????????### #?? | | ?????????????????#####??#### ##?? | | ???????????????### #### #??? | | ???????????#?#### ##?#? | | ????????#???## ####???? | | ???????????## ##??????? | | ?????####### ##??????? | | ????## ##### #??????? | | ??#?# ##??## #?????#? | | ????# #####???# #??????? | | ????## # ##????# #??????? | | ???#?### # #??#?# ##??????? | | ???????# = ###??## ##???????? | | ???????# %* #???####????????? | | ???????# % #???????????????? | | ???????# # ##????????????#?? | | ???????## # #???????????????? | | ???????# #???????????#??#? | | ??#????# d =%!##??????????????? | | ?????### @ ! #??????????????? | | ?????# r##?????????????? | | ?????# #?????????????? | | ????# #???????? | | ????# #????????? | | ????# ###????????? | | ???# ##??????????? | | ???# u #???????????? | | ???# t tu#???????????? | | ???# #???????????? | | ???## ### #??????????? | | ????# ##??# #?????????? | | ????# #???? ?????????? | | ???? #????? ?????????? | | ???# ###?????? ??????????? | | ???? #?????????? ????????????? | | ?????????????????? ##??????????????? | | ???????????????????????????????????? | | ???????????????????????????????????? | | ???????????????????????????????????? | | ???????????????????????????????????? | | ???????????????????????????????????? | | ???????????????????????????????????? | | ???????????????????????????????????? | | ???????????????????????????????????? | +----------------------------------------------------+ Best States ------------- Heat Dissipation 25 Energy Generation 10 Energy Capacity 650 Matter Stores 300 Matter Capacity 300 Sight Range 16 Terrain Scan Range 14 Terrain Scan Density 10 Evasion (%) 40 Item Schematics ----------------- None Robot Schematics ------------------ None Fabricated ------------ Nothing Alien Tech Used ----------------- None Achievements -------------- None Challenges ------------ None Game ------ Seed SlugPortableRouter Manual? 0 Play Time 00:19:15 Cumulative 51.2 hours Start 2022.03.13 @ 15:25:48 End 2022.03.13 @ 15:45:29 Sessions 1 Manual Loads 0 Difficulty Rogue Special Mode None Game No. 40 Rogue 30 Adventurer 0 Explorer 10 Win Type - Total 0 Types 0/0/0/0/0/0/0/0/0 Lore% 39 Gallery% 40 Achievement% 26 Wizard Run 0 Options --------- ASCII 0 Keyboard 0 Movement Numpad Keybinds 0 Fullscreen 1 Font 18/SmallcapsGlow Map View 76x50 Tactical HUD 0 Map Filters NONE Filters NONE Steam 1 RUN: 02e9918a-7456-4ffe-a0da-fb99fe2d84a9